[Event "*** Qualifier 2: Titled Tuesday 3|2 Blitz"]
[Site "Chess.com"]
[Date "2017.04.11"]
[Round "9"]
[White "Feegus"]
[Black "Blitzstream"]
[Result "0-1"]
[WhiteElo "2368"]
[BlackElo "2480"]
[TimeControl "180+2"]
[EndTime "15:09:48 PDT"]
[Termination "Blitzstream won by resignation"]

1. d4 {[%clk 0:03:02]} 1... Nf6 {[%clk 0:02:57.4]} 2. Bf4 {[%clk 0:03:01.6]}
2... g6 {[%clk 0:02:57.3]} 3. e3 {[%clk 0:03:03.1]} 3... Bg7 {[%clk 0:02:58.4]}
4. Nf3 {[%clk 0:03:04.5]} 4... O-O {[%clk 0:02:59.6]} 5. Be2 {[%clk 0:03:06.2]}
5... d6 {[%clk 0:03:01.2]} 6. O-O {[%clk 0:03:07.6]} 6... c5 {[%clk 0:03:02.7]}
7. c3 {[%clk 0:03:08.5]} 7... Nc6 {[%clk 0:03:01.8]} 8. h3 {[%clk 0:03:08.2]}
8... Qb6 {[%clk 0:02:51.8]} 9. Qb3 {[%clk 0:03:06.2]} 9... Be6 {[%clk
0:02:48.1]} 10. Qxb6 {[%clk 0:02:55.7]} 10... axb6 {[%clk 0:02:48.9]} 11. a3
{[%clk 0:02:55.6]} 11... Na5 {[%clk 0:02:31.2]} 12. Nbd2 {[%clk 0:02:55.2]}
12... Nb3 {[%clk 0:02:26.4]} 13. Nxb3 {[%clk 0:02:54.1]} 13... Bxb3 {[%clk
0:02:28.3]} 14. Rac1 {[%clk 0:02:52.2]} 14... Ne4 {[%clk 0:02:23.4]} 15. Bd3
{[%clk 0:02:46.4]} 15... f5 {[%clk 0:02:20.9]} 16. Bxe4 {[%clk 0:02:38.7]} 16...
fxe4 {[%clk 0:02:21.7]} 17. Nd2 {[%clk 0:02:40.4]} 17... Bd5 {[%clk 0:02:22.9]}
18. c4 {[%clk 0:02:41.3]} 18... Bc6 {[%clk 0:02:23.8]} 19. d5 {[%clk 0:02:41.8]}
19... Bd7 {[%clk 0:02:25]} 20. Rb1 {[%clk 0:02:32.7]} 20... b5 {[%clk
0:02:15.7]} 21. Rfc1 {[%clk 0:02:09.5]} 21... bxc4 {[%clk 0:02:00.8]} 22. Nxc4
{[%clk 0:02:10.5]} 22... Ra6 {[%clk 0:01:54.9]} 23. Bg5 {[%clk 0:02:07.9]} 23...
Kf7 {[%clk 0:01:50.4]} 24. Bf4 {[%clk 0:01:24.8]} 24... b5 {[%clk 0:01:20.2]}
25. Nd2 {[%clk 0:01:25.2]} 25... Ra4 {[%clk 0:01:18.1]} 26. Kf1 {[%clk
0:01:16.2]} 26... b4 {[%clk 0:01:09.4]} 27. axb4 {[%clk 0:01:14.1]} 27... Rxb4
{[%clk 0:01:10.6]} 28. b3 {[%clk 0:01:10.2]} 28... Bb5+ {[%clk 0:01:09.1]} 29.
Ke1 {[%clk 0:00:40.9]} 29... Bd3 {[%clk 0:01:11]} 30. Ra1 {[%clk 0:00:41.7]}
30... Bxa1 {[%clk 0:01:10.4]} 31. Rxa1 {[%clk 0:00:42.8]} 31... Rfb8 {[%clk
0:01:10.4]} 32. Ra7 {[%clk 0:00:42.9]} 32... R4b7 {[%clk 0:01:10.6]} 33. Ra5
{[%clk 0:00:34.6]} 33... Bc2 {[%clk 0:01:08.7]} 34. g4 {[%clk 0:00:30]} 34...
Bxb3 {[%clk 0:01:08.7]} 35. Nxe4 {[%clk 0:00:31.1]} 35... Bxd5 {[%clk
0:01:05.8]} 36. Ng5+ {[%clk 0:00:25.6]} 36... Kg7 {[%clk 0:00:55.3]} 37. e4
{[%clk 0:00:26.5]} 37... Rb1+ {[%clk 0:00:50.2]} 38. Kd2 {[%clk 0:00:27.7]}
38... R8b2+ {[%clk 0:00:44.4]} 39. Kc3 {[%clk 0:00:29.1]} 39... Rb3+ {[%clk
0:00:45.4]} 40. Kc2 {[%clk 0:00:30.2]} 40... R1b2+ {[%clk 0:00:46.6]} 41. Kc1
{[%clk 0:00:31.3]} 41... Bc4 {[%clk 0:00:46.8]} 42. Ra7 {[%clk 0:00:30.2]} 42...
Rb7 {[%clk 0:00:45.1]} 43. Ra8 {[%clk 0:00:28.3]} 43... Rxf2 {[%clk 0:00:31.8]}
44. Bd2 {[%clk 0:00:29.3]} 44... h6 {[%clk 0:00:27.5]} 45. Bc3+ {[%clk
0:00:27.3]} 45... e5 {[%clk 0:00:28.6]} 46. Ra4 {[%clk 0:00:10.6]} 46... Bb3
{[%clk 0:00:23.3]} 47. Ra6 {[%clk 0:00:11.4]} 47... hxg5 {[%clk 0:00:23.8]} 48.
Rxd6 {[%clk 0:00:13]} 48... Rc2+ {[%clk 0:00:24.7]} 0-1

[Event "*** Qualifier 2: Titled Tuesday 3|2 Blitz"]
[Site "Chess.com"]
[Date "2017.04.11"]
[Round "9"]
[White "Ilja_Semjonovs"]
[Black "1e41-0"]
[Result "1-0"]
[WhiteElo "2185"]
[BlackElo "2319"]
[TimeControl "180+2"]
[EndTime "15:09:53 PDT"]
[Termination "Ilja_Semjonovs won by checkmate"]

1. d4 {[%clk 0:03:02]} 1... d5 {[%clk 0:03:00.8]} 2. Nf3 {[%clk 0:03:01.7]} 2...
Nf6 {[%clk 0:03:01.4]} 3. Bg5 {[%clk 0:03:02.2]} 3... c6 {[%clk 0:03:01.2]} 4.
Bxf6 {[%clk 0:03:03.3]} 4... exf6 {[%clk 0:03:01.8]} 5. c3 {[%clk 0:02:33.7]}
5... Bd6 {[%clk 0:02:27.8]} 6. e3 {[%clk 0:02:32.9]} 6... Bf5 {[%clk 0:02:27.1]}
7. Bd3 {[%clk 0:02:33.4]} 7... Bg6 {[%clk 0:02:26.9]} 8. O-O {[%clk 0:02:32.2]}
8... O-O {[%clk 0:02:27]} 9. Bxg6 {[%clk 0:02:32.9]} 9... fxg6 {[%clk
0:02:25.1]} 10. Nbd2 {[%clk 0:02:33.9]} 10... Nd7 {[%clk 0:02:26.4]} 11. e4
{[%clk 0:02:34.7]} 11... Qc7 {[%clk 0:02:24.8]} 12. exd5 {[%clk 0:02:32.6]}
12... cxd5 {[%clk 0:02:25.4]} 13. Qb3 {[%clk 0:02:34]} 13... Nb6 {[%clk
0:02:25.5]} 14. Rfe1 {[%clk 0:02:33.9]} 14... Rae8 {[%clk 0:02:26.2]} 15. h3
{[%clk 0:02:32.8]} 15... Kh8 {[%clk 0:02:24]} 16. a4 {[%clk 0:02:33.3]} 16...
Nc4 {[%clk 0:02:21.6]} 17. Nxc4 {[%clk 0:02:33.2]} 17... dxc4 {[%clk 0:02:23.5]}
18. Qc2 {[%clk 0:02:33.7]} 18... Qc6 {[%clk 0:02:23.9]} 19. Rxe8 {[%clk
0:02:31.2]} 19... Rxe8 {[%clk 0:02:14.2]} 20. Re1 {[%clk 0:02:31.9]} 20... Rxe1+
{[%clk 0:02:12.8]} 21. Nxe1 {[%clk 0:02:32.9]} 21... Qe8 {[%clk 0:02:13.4]} 22.
Nf3 {[%clk 0:02:33.5]} 22... Kg8 {[%clk 0:02:09.8]} 23. g3 {[%clk 0:02:34]}
23... Qc6 {[%clk 0:02:05.5]} 24. Nd2 {[%clk 0:02:31.9]} 24... f5 {[%clk
0:02:00.4]} 25. Qd1 {[%clk 0:02:29.5]} 25... Kf7 {[%clk 0:02:01.4]} 26. Qe2
{[%clk 0:02:29.5]} 26... Qxa4 {[%clk 0:01:59.8]} 27. Nxc4 {[%clk 0:02:28.7]}
27... Qc6 {[%clk 0:01:57.6]} 28. b3 {[%clk 0:02:22]} 28... Bc7 {[%clk
0:01:56.5]} 29. Qd3 {[%clk 0:02:16.9]} 29... b5 {[%clk 0:01:56]} 30. Ne3 {[%clk
0:02:17.7]} 30... a6 {[%clk 0:01:52.7]} 31. c4 {[%clk 0:02:12.8]} 31... Qd7
{[%clk 0:01:23.8]} 32. c5 {[%clk 0:02:01.6]} 32... f4 {[%clk 0:01:24.2]} 33.
gxf4 {[%clk 0:02:00.1]} 33... Bxf4 {[%clk 0:01:26.1]} 34. d5 {[%clk 0:01:52.9]}
34... Bxe3 {[%clk 0:01:26.8]} 35. fxe3 {[%clk 0:01:36.9]} 35... Qxh3 {[%clk
0:01:10.1]} 36. Qe4 {[%clk 0:01:37.8]} 36... Qg3+ {[%clk 0:01:10.2]} 37. Kf1
{[%clk 0:01:38.7]} 37... Qh3+ {[%clk 0:01:11.3]} 38. Ke2 {[%clk 0:01:39]} 38...
Qh2+ {[%clk 0:01:12.2]} 39. Kd3 {[%clk 0:01:34.3]} 39... Qb2 {[%clk 0:01:07.6]}
40. Qe6+ {[%clk 0:01:29.9]} 40... Kf8 {[%clk 0:01:08.6]} 41. Qd6+ {[%clk
0:01:03.2]} 41... Kf7 {[%clk 0:01:05.5]} 42. Qe6+ {[%clk 0:01:03.1]} 42... Kf8
{[%clk 0:01:06.6]} 43. Qc8+ {[%clk 0:00:58.2]} 43... Kf7 {[%clk 0:01:07.6]} 44.
Qb7+ {[%clk 0:00:56.1]} 44... Kf8 {[%clk 0:01:05.9]} 45. Qc8+ {[%clk 0:00:55.6]}
45... Kf7 {[%clk 0:01:07.1]} 46. Qe6+ {[%clk 0:00:56.5]} 46... Kf8 {[%clk
0:01:08.2]} 47. c6 {[%clk 0:00:55.7]} 47... Qxb3+ {[%clk 0:01:08.2]} 48. Kd4
{[%clk 0:00:57.1]} 48... Qb4+ {[%clk 0:01:03.2]} 49. Ke5 {[%clk 0:00:57.9]}
49... Qh4 {[%clk 0:00:50.9]} 50. Kd6 {[%clk 0:00:50.2]} 50... Qd8+ {[%clk
0:00:49.3]} 51. Kc5 {[%clk 0:00:49.7]} 51... b4 {[%clk 0:00:35]} 52. Qd6+ {[%clk
0:00:37]} 52... Ke8 {[%clk 0:00:36]} 53. c7 {[%clk 0:00:36.1]} 53... Qc8 {[%clk
0:00:30.7]} 54. Qe6+ {[%clk 0:00:37]} 54... Qxe6 {[%clk 0:00:31.2]} 55. dxe6
{[%clk 0:00:38.1]} 55... b3 {[%clk 0:00:32.7]} 56. c8=Q+ {[%clk 0:00:38.6]}
56... Ke7 {[%clk 0:00:34.6]} 57. Qd7+ {[%clk 0:00:39.3]} 57... Kf6 {[%clk
0:00:36.5]} 58. e7 {[%clk 0:00:39.8]} 58... Kg5 {[%clk 0:00:38.4]} 59. e8=Q
{[%clk 0:00:40]} 59... Kh6 {[%clk 0:00:40.3]} 60. Qh3+ {[%clk 0:00:38.8]} 60...
Kg5 {[%clk 0:00:41.4]} 61. Qe5# {[%clk 0:00:39.8]} 1-0

[Event "*** Qualifier 2: Titled Tuesday 3|2 Blitz"]
[Site "Chess.com"]
[Date "2017.04.11"]
[Round "9"]
[White "Buffy7"]
[Black "jcgs1030"]
[Result "1-0"]
[WhiteElo "2496"]
[BlackElo "2286"]
[TimeControl "180+2"]
[EndTime "15:10:31 PDT"]
[Termination "Buffy7 won by resignation"]

1. d4 {[%clk 0:03:02]} 1... Nf6 {[%clk 0:02:58]} 2. c4 {[%clk 0:03:03.6]} 2...
c5 {[%clk 0:02:54.7]} 3. d5 {[%clk 0:03:04.4]} 3... e6 {[%clk 0:02:56.1]} 4. Nc3
{[%clk 0:03:05]} 4... exd5 {[%clk 0:02:58]} 5. cxd5 {[%clk 0:03:06.9]} 5... d6
{[%clk 0:02:58.8]} 6. Nf3 {[%clk 0:03:06.8]} 6... g6 {[%clk 0:03:00.3]} 7. Bf4
{[%clk 0:03:08.2]} 7... Bg7 {[%clk 0:03:01.8]} 8. Qa4+ {[%clk 0:03:07.6]} 8...
Bd7 {[%clk 0:03:03.3]} 9. Qb3 {[%clk 0:03:08.9]} 9... Bc8 {[%clk 0:03:04.9]} 10.
Qb5+ {[%clk 0:03:01.2]} 10... Kf8 {[%clk 0:02:50.5]} 11. Qb3 {[%clk 0:02:53]}
11... h6 {[%clk 0:02:46.8]} 12. h3 {[%clk 0:02:50.4]} 12... Na6 {[%clk
0:02:45.8]} 13. e4 {[%clk 0:02:41]} 13... Nc7 {[%clk 0:02:45.2]} 14. a4 {[%clk
0:02:40.9]} 14... Kg8 {[%clk 0:02:45.2]} 15. Bd3 {[%clk 0:02:32.6]} 15... Kh7
{[%clk 0:02:42.7]} 16. O-O {[%clk 0:02:34.1]} 16... Re8 {[%clk 0:02:42.2]} 17.
Rfe1 {[%clk 0:02:34]} 17... b6 {[%clk 0:02:39.5]} 18. Nb5 {[%clk 0:02:06.7]}
18... Nh5 {[%clk 0:02:30]} 19. Bh2 {[%clk 0:02:02.7]} 19... Nxb5 {[%clk
0:02:27.8]} 20. axb5 {[%clk 0:02:02.5]} 20... Qf6 {[%clk 0:02:23.5]} 21. e5
{[%clk 0:01:55.8]} 21... dxe5 {[%clk 0:02:24.1]} 22. Bxe5 {[%clk 0:01:56.9]}
22... Qd8 {[%clk 0:02:25.3]} 23. Rad1 {[%clk 0:01:50]} 23... Bb7 {[%clk
0:02:16.9]} 24. g4 {[%clk 0:01:34.5]} 24... Bxe5 {[%clk 0:02:07.4]} 25. gxh5
{[%clk 0:01:28]} 25... Bd6 {[%clk 0:01:59]} 26. Qc4 {[%clk 0:01:17.9]} 26... Qf6
{[%clk 0:01:55.1]} 27. Qg4 {[%clk 0:01:18.9]} 27... Rxe1+ {[%clk 0:01:43]} 28.
Rxe1 {[%clk 0:01:19.5]} 28... Bxd5 {[%clk 0:01:43.5]} 29. Nh4 {[%clk 0:01:14.2]}
29... Rg8 {[%clk 0:01:40.7]} 30. hxg6+ {[%clk 0:01:11.6]} 30... fxg6 {[%clk
0:01:41.5]} 31. Kf1 {[%clk 0:01:12.2]} 31... Rg7 {[%clk 0:01:36.3]} 32. Nxg6
{[%clk 0:01:09.1]} 32... Rxg6 {[%clk 0:01:33.6]} 33. Qd7+ {[%clk 0:01:10]} 33...
Bf7 {[%clk 0:01:22.7]} 34. Re3 {[%clk 0:00:36.6]} 34... Kg7 {[%clk 0:01:18.9]}
35. Bxg6 {[%clk 0:00:36.9]} 35... Kxg6 {[%clk 0:01:19.2]} 36. Qxa7 {[%clk
0:00:37.7]} 36... Bf4 {[%clk 0:01:14.4]} 37. Re4 {[%clk 0:00:33.7]} 37... Bg3
{[%clk 0:01:07.8]} 38. Rg4+ {[%clk 0:00:32.4]} 38... Kh5 {[%clk 0:01:07.6]} 39.
Rxg3 {[%clk 0:00:34]} 39... Bc4+ {[%clk 0:01:06.7]} 40. Kg1 {[%clk 0:00:35.2]}
40... Qxb2 {[%clk 0:00:57.4]} 41. Qd7 {[%clk 0:00:26.8]} 41... Qb1+ {[%clk
0:00:53.7]} 42. Kh2 {[%clk 0:00:28.1]} 42... Qe4 {[%clk 0:00:49.7]} 43. Qd1+
{[%clk 0:00:20.5]} 43... Be2 {[%clk 0:00:47.3]} 44. Qd7 {[%clk 0:00:19.6]} 44...
Bc4 {[%clk 0:00:43.7]} 45. Qg4+ {[%clk 0:00:19.2]} 45... Qxg4 {[%clk 0:00:41.9]}
46. hxg4+ {[%clk 0:00:21.1]} 46... Kg5 {[%clk 0:00:41.9]} 47. Rc3 {[%clk
0:00:22.6]} 47... Bxb5 {[%clk 0:00:42.2]} 48. Kg3 {[%clk 0:00:24.5]} 48... Bd7
{[%clk 0:00:38.4]} 49. f4+ {[%clk 0:00:25.5]} 49... Kf6 {[%clk 0:00:39.8]} 50.
Rd3 {[%clk 0:00:26.2]} 50... Ke7 {[%clk 0:00:36.9]} 51. f5 {[%clk 0:00:26.6]}
51... c4 {[%clk 0:00:38.1]} 52. Rd4 {[%clk 0:00:26.5]} 52... b5 {[%clk
0:00:39.1]} 53. Kf4 {[%clk 0:00:27.8]} 53... c3 {[%clk 0:00:39.9]} 54. Re4+
{[%clk 0:00:27.5]} 54... Kf6 {[%clk 0:00:35.9]} 55. Ke3 {[%clk 0:00:27.1]} 55...
h5 {[%clk 0:00:29.7]} 56. Rd4 {[%clk 0:00:28.4]} 56... Bc8 {[%clk 0:00:21.8]}
57. Rd6+ {[%clk 0:00:29.3]} 57... Ke5 {[%clk 0:00:18.5]} 58. Rc6 {[%clk
0:00:30.2]} 58... Bd7 {[%clk 0:00:18.5]} 59. Rc7 {[%clk 0:00:29]} 59... Kd6
{[%clk 0:00:18.4]} 60. Rxc3 {[%clk 0:00:28.2]} 60... hxg4 {[%clk 0:00:18.9]} 61.
Rd3+ {[%clk 0:00:29.5]} 61... Ke5 {[%clk 0:00:20.2]} 62. Rxd7 {[%clk 0:00:30.3]}
62... Kxf5 {[%clk 0:00:22.1]} 63. Rd5+ {[%clk 0:00:31.4]} 63... Kg6 {[%clk
0:00:22.2]} 64. Kf4 {[%clk 0:00:32.5]} 1-0

[Event "*** Qualifier 2: Titled Tuesday 3|2 Blitz"]
[Site "Chess.com"]
[Date "2017.04.11"]
[Round "9"]
[White "jcibarra"]
[Black "maciek_92"]
[Result "1/2-1/2"]
[WhiteElo "2659"]
[BlackElo "2553"]
[TimeControl "180+2"]
[EndTime "15:10:43 PDT"]
[Termination "Game drawn by repetition"]

1. e4 {[%clk 0:03:02]} 1... c5 {[%clk 0:03:00.9]} 2. Nf3 {[%clk 0:03:03.3]} 2...
Nc6 {[%clk 0:03:02.5]} 3. d4 {[%clk 0:03:04.7]} 3... cxd4 {[%clk 0:03:04.4]} 4.
Nxd4 {[%clk 0:03:06]} 4... e6 {[%clk 0:03:06]} 5. Nc3 {[%clk 0:03:06.8]} 5... a6
{[%clk 0:03:07.3]} 6. g3 {[%clk 0:03:07.8]} 6... Nf6 {[%clk 0:03:05.3]} 7. Bg2
{[%clk 0:03:08.1]} 7... Qc7 {[%clk 0:03:07]} 8. O-O {[%clk 0:03:08.9]} 8... Be7
{[%clk 0:03:07.3]} 9. Re1 {[%clk 0:03:09.2]} 9... O-O {[%clk 0:03:01.6]} 10.
Nxc6 {[%clk 0:03:04.5]} 10... dxc6 {[%clk 0:03:03.2]} 11. e5 {[%clk 0:03:06.1]}
11... Rd8 {[%clk 0:02:58.8]} 12. Qf3 {[%clk 0:02:56.1]} 12... Nd5 {[%clk
0:03:00.2]} 13. a3 {[%clk 0:02:56.8]} 13... b5 {[%clk 0:02:55.7]} 14. h4 {[%clk
0:02:56.1]} 14... Bb7 {[%clk 0:02:33.6]} 15. Nxd5 {[%clk 0:02:54]} 15... Rxd5
{[%clk 0:02:20.9]} 16. Qe2 {[%clk 0:02:53.8]} 16... Rd7 {[%clk 0:02:19.4]} 17.
Bg5 {[%clk 0:02:49.3]} 17... Bxg5 {[%clk 0:02:03.5]} 18. hxg5 {[%clk 0:02:51.2]}
18... c5 {[%clk 0:02:04.9]} 19. Rad1 {[%clk 0:02:21.1]} 19... Rad8 {[%clk
0:02:03.4]} 20. Rxd7 {[%clk 0:02:19.7]} 20... Rxd7 {[%clk 0:02:00.2]} 21. Rd1
{[%clk 0:02:16.9]} 21... Bxg2 {[%clk 0:02:00.5]} 22. Kxg2 {[%clk 0:02:15.3]}
22... Qc6+ {[%clk 0:01:57.5]} 23. f3 {[%clk 0:02:14]} 23... g6 {[%clk
0:01:47.1]} 24. Kf2 {[%clk 0:02:09.8]} 24... c4 {[%clk 0:01:36.9]} 25. Rxd7
{[%clk 0:02:08.1]} 25... Qxd7 {[%clk 0:01:38.8]} 26. c3 {[%clk 0:02:07.3]} 26...
Qd5 {[%clk 0:01:23]} 27. f4 {[%clk 0:02:03.5]} 27... Kf8 {[%clk 0:01:23.5]} 28.
Ke3 {[%clk 0:01:57.7]} 28... Qc5+ {[%clk 0:00:49.4]} 29. Kf3 {[%clk 0:01:58.7]}
29... Qd5+ {[%clk 0:00:46.9]} 30. Kf2 {[%clk 0:01:59]} 30... Ke7 {[%clk
0:00:47.7]} 31. Qe3 {[%clk 0:01:57.8]} 31... Kd8 {[%clk 0:00:36.5]} 32. Qb6+
{[%clk 0:01:57.2]} 32... Ke8 {[%clk 0:00:34.1]} 33. Qb8+ {[%clk 0:01:52.8]}
33... Kd7 {[%clk 0:00:32.5]} 34. Qa7+ {[%clk 0:01:51.4]} 34... Ke8 {[%clk
0:00:33.6]} 35. Qe3 {[%clk 0:01:29.1]} 35... Kd7 {[%clk 0:00:32.5]} 36. Ke1
{[%clk 0:01:23.6]} 36... Kc6 {[%clk 0:00:31.7]} 37. Qa7 {[%clk 0:01:04]} 37...
Qe4+ {[%clk 0:00:24.3]} 38. Kd2 {[%clk 0:00:52.7]} 38... Qg2+ {[%clk 0:00:20.4]}
39. Kc1 {[%clk 0:00:50.2]} 39... Qf1+ {[%clk 0:00:17.9]} 40. Kc2 {[%clk
0:00:47.8]} 40... Qd3+ {[%clk 0:00:18.7]} 41. Kc1 {[%clk 0:00:49]} 41... Kd5
{[%clk 0:00:14.3]} 42. Qa8+ {[%clk 0:00:41.7]} 42... Kc5 {[%clk 0:00:14.5]} 43.
Qc8+ {[%clk 0:00:38]} 43... Kd5 {[%clk 0:00:15.4]} 44. Qb7+ {[%clk 0:00:37.7]}
44... Kc5 {[%clk 0:00:15.8]} 45. Qa7+ {[%clk 0:00:19.5]} 45... Kd5 {[%clk
0:00:16.3]} 46. Qa8+ {[%clk 0:00:16.4]} 46... Kc5 {[%clk 0:00:16.7]} 47. Qf8+
{[%clk 0:00:14]} 47... Kd5 {[%clk 0:00:16.9]} 48. Qa8+ {[%clk 0:00:11]} 48...
Kc5 {[%clk 0:00:17.7]} 49. Qa7+ {[%clk 0:00:12.4]} 49... Kd5 {[%clk 0:00:18.6]}
50. Qb7+ {[%clk 0:00:13.7]} 50... Kc5 {[%clk 0:00:19.6]} 51. Qc7+ {[%clk
0:00:08.7]} 51... Kd5 {[%clk 0:00:20.6]} 52. Qb7+ {[%clk 0:00:08.1]} 52... Kc5
{[%clk 0:00:19.7]} 53. Qxa6 {[%clk 0:00:08.1]} 53... Qf1+ {[%clk 0:00:16.9]} 54.
Kc2 {[%clk 0:00:09.5]} 54... Qe2+ {[%clk 0:00:15.8]} 55. Kb1 {[%clk 0:00:07.7]}
55... Qd1+ {[%clk 0:00:16.9]} 56. Ka2 {[%clk 0:00:08.8]} 56... Qb3+ {[%clk
0:00:18.5]} 57. Ka1 {[%clk 0:00:10.3]} 57... Qd1+ {[%clk 0:00:20.1]} 58. Ka2
{[%clk 0:00:11.8]} 58... Qb3+ {[%clk 0:00:19.9]} 59. Ka1 {[%clk 0:00:13.3]}
59... Qd1+ {[%clk 0:00:21.5]} 60. Ka2 {[%clk 0:00:14.7]} 60... Qb3+ {[%clk
0:00:23.2]} 61. Ka1 {[%clk 0:00:16.2]} 61... Qd1+ {[%clk 0:00:24.9]} 62. Ka2
{[%clk 0:00:17.6]} 62... Qb3+ {[%clk 0:00:26.5]} 63. Kb1 {[%clk 0:00:19.2]}
63... Qd1+ {[%clk 0:00:27.2]} 64. Ka2 {[%clk 0:00:20.6]} 1/2-1/2

[Event "*** Qualifier 2: Titled Tuesday 3|2 Blitz"]
[Site "Chess.com"]
[Date "2017.04.11"]
[Round "9"]
[White "EvgenyT"]
[Black "TomsKantans"]
[Result "0-1"]
[WhiteElo "2569"]
[BlackElo "2508"]
[TimeControl "180+2"]
[EndTime "15:10:55 PDT"]
[Termination "TomsKantans won by resignation"]

1. Nf3 {[%clk 0:02:58.1]} 1... Nf6 {[%clk 0:02:59.6]} 2. c4 {[%clk 0:02:58.8]}
2... c5 {[%clk 0:02:57.2]} 3. Nc3 {[%clk 0:02:59.2]} 3... Nc6 {[%clk 0:02:58]}
4. g3 {[%clk 0:02:55.1]} 4... g6 {[%clk 0:02:59]} 5. Bg2 {[%clk 0:02:51.1]} 5...
Bg7 {[%clk 0:02:59.9]} 6. O-O {[%clk 0:02:39.9]} 6... O-O {[%clk 0:03:00.8]} 7.
d4 {[%clk 0:02:22.8]} 7... d5 {[%clk 0:03:01.7]} 8. dxc5 {[%clk 0:01:39.5]} 8...
dxc4 {[%clk 0:03:00.7]} 9. Qa4 {[%clk 0:00:15.5]} 9... Qa5 {[%clk 0:02:58.6]}
10. Qxa5 {[%clk 0:00:15.9]} 10... Nxa5 {[%clk 0:03:00.1]} 11. Bf4 {[%clk
0:00:17.4]} 11... Bd7 {[%clk 0:02:20.8]} 12. Ne5 {[%clk 0:00:16.8]} 12... Rac8
{[%clk 0:02:14.1]} 13. Be3 {[%clk 0:00:17.8]} 13... Be6 {[%clk 0:02:08.8]} 14.
Rfd1 {[%clk 0:00:18.2]} 14... Rfd8 {[%clk 0:01:52.6]} 15. f4 {[%clk 0:00:19]}
15... Nd7 {[%clk 0:01:47.6]} 16. Nxd7 {[%clk 0:00:17.9]} 16... Bxd7 {[%clk
0:01:47]} 17. Rd2 {[%clk 0:00:14.7]} 17... Bc6 {[%clk 0:01:45.6]} 18. Rad1
{[%clk 0:00:15]} 18... Rxd2 {[%clk 0:01:45.9]} 19. Rxd2 {[%clk 0:00:16.1]} 19...
Bxg2 {[%clk 0:01:38.6]} 20. Kxg2 {[%clk 0:00:17.1]} 20... Kf8 {[%clk 0:01:39.2]}
21. g4 {[%clk 0:00:13.5]} 21... Ke8 {[%clk 0:01:39.9]} 22. Ne4 {[%clk
0:00:11.9]} 22... Nc6 {[%clk 0:01:27.1]} 23. Rc2 {[%clk 0:00:12.2]} 23... Nb4
{[%clk 0:01:22.4]} 24. Rxc4 {[%clk 0:00:13]} 24... Nd5 {[%clk 0:01:23.8]} 25.
Bc1 {[%clk 0:00:09.8]} 25... Bxb2 {[%clk 0:01:25.1]} 26. Kf3 {[%clk 0:00:10.3]}
26... b5 {[%clk 0:01:18.5]} 27. Rc2 {[%clk 0:00:09.2]} 27... Bxc1 {[%clk
0:01:11.9]} 28. Rxc1 {[%clk 0:00:11.1]} 28... Rc6 {[%clk 0:01:11.3]} 29. g5
{[%clk 0:00:11.4]} 29... a5 {[%clk 0:01:10.4]} 30. a3 {[%clk 0:00:11.5]} 30...
Kd7 {[%clk 0:00:56.4]} 31. Rd1 {[%clk 0:00:12.6]} 31... Ke6 {[%clk 0:00:57.3]}
32. h4 {[%clk 0:00:13.2]} 32... f5 {[%clk 0:00:45.9]} 33. gxf6 {[%clk 0:00:14]}
33... exf6 {[%clk 0:00:47.8]} 34. Rb1 {[%clk 0:00:14.9]} 34... b4 {[%clk
0:00:47.6]} 35. axb4 {[%clk 0:00:16.1]} 35... Nxb4 {[%clk 0:00:41.4]} 36. Ra1
{[%clk 0:00:13.8]} 36... Ra6 {[%clk 0:00:39.8]} 37. Nc3 {[%clk 0:00:14.7]} 37...
Nc6 {[%clk 0:00:35.9]} 38. Ke4 {[%clk 0:00:13.9]} 38... f5+ {[%clk 0:00:35.9]}
39. Kd3 {[%clk 0:00:15.2]} 39... Ra8 {[%clk 0:00:35.1]} 40. Kc4 {[%clk
0:00:14.9]} 40... Rb8 {[%clk 0:00:35.8]} 41. Rb1 {[%clk 0:00:16.2]} 41... Rxb1
{[%clk 0:00:11.7]} 42. Nxb1 {[%clk 0:00:17.2]} 42... a4 {[%clk 0:00:12.7]} 43.
Kb5 {[%clk 0:00:16.6]} 43... Nd4+ {[%clk 0:00:13.7]} 44. Kxa4 {[%clk 0:00:13.9]}
44... Kd5 {[%clk 0:00:15.1]} 45. Kb4 {[%clk 0:00:12.2]} 45... Nxe2 {[%clk
0:00:16.2]} 46. Kb5 {[%clk 0:00:13.5]} 46... Nxf4 {[%clk 0:00:15.6]} 47. Kb6
{[%clk 0:00:14.6]} 47... Kd4 {[%clk 0:00:13.2]} 48. c6 {[%clk 0:00:13.6]} 48...
Nd5+ {[%clk 0:00:14.3]} 49. Kb7 {[%clk 0:00:13.4]} 49... f4 {[%clk 0:00:15.7]}
50. Nd2 {[%clk 0:00:14.5]} 50... Kd3 {[%clk 0:00:16.3]} 51. Nf3 {[%clk
0:00:15.5]} 51... Ke3 {[%clk 0:00:17.4]} 52. Ng5 {[%clk 0:00:07.8]} 52... f3
{[%clk 0:00:18.4]} 53. Nxh7 {[%clk 0:00:08.5]} 53... f2 {[%clk 0:00:19.5]} 54.
Nf6 {[%clk 0:00:10.1]} 54... Nxf6 {[%clk 0:00:20.3]} 55. c7 {[%clk 0:00:11]}
55... Ne8 {[%clk 0:00:21.8]} 0-1